bitfinex/quotes_BTCUSD_20250212
["timestamp","ask_amount","ask_price","bid_price","bid_amount"]
[1739376717779,0.35982416,95476.0,95475.0,0.0076219]
[1739376718008,0.36082416,95476.0,95475.0,0.0076219]
[1739376719344,0.25832051,95476.0,95475.0,0.0076219]
[1739376719563,0.23749585,95476.0,95475.0,0.0076219]
[1739376720767,0.25876422,95476.0,95475.0,0.0076219]
[1739376721755,0.23749585,95476.0,95475.0,0.0076219]
[1739376722898,0.2064888,95476.0,95475.0,0.0076219]
[1739376724003,0.18717673,95476.0,95475.0,0.0886219]
[1739376724212,0.03006973,95476.0,95475.0,0.0886219]
[1739376724362,0.03006973,95476.0,95475.0,0.0076219]
[1739376724363,0.18717673,95476.0,95475.0,0.0076219]
[1739376724585,0.1678042,95476.0,95475.0,0.0076219]
[1739376725654,0.1698042,95476.0,95475.0,0.0076219]
[1739376725884,0.18869409,95476.0,95475.0,0.0076219]
[1739376726093,0.27950054,95476.0,95475.0,0.0076219]
[1739376726448,0.29426602,95476.0,95475.0,0.0076219]
[1739376726654,0.32667219,95476.0,95475.0,0.0076219]
[1739376726805,0.58087219,95476.0,95475.0,9e-07]
[1739376727008,0.157158,95445.0,95443.0,0.0832]
[1739376727223,0.157158,95445.0,95444.0,0.00020287]
[1739376728270,0.17661759,95445.0,95444.0,0.00030957]
[1739376728474,0.17761759,95445.0,95444.0,0.00230957]
[1739376728612,0.18734192,95445.0,95444.0,0.00230957]
[1739376728817,0.18734192,95445.0,95444.0,0.00030957]
[1739376729014,0.20634579,95445.0,95444.0,0.00030957]
[1739376729593,0.39434492,95445.0,95444.0,0.00030957]
[1739376730002,0.39234492,95445.0,95444.0,0.00030957]
[1739376730138,0.38362059,95445.0,95444.0,0.00030957]
[1739376730341,0.19862146,95445.0,95444.0,0.00030957]
[1739376730589,0.19662146,95445.0,95444.0,0.00030957]
[1739376731622,0.19562146,95445.0,95444.0,0.00030957]
[1739376732168,0.19662146,95445.0,95444.0,0.00030957]
[1739376732362,0.02000387,95445.0,95444.0,0.00030957]
[1739376732568,0.01900387,95445.0,95444.0,0.00030957]
[1739376732772,0.157146,95453.0,95446.0,0.157156]
[1739376732985,0.209527,95453.0,95445.0,0.1292]
[1739376733215,0.20952,95456.0,95445.0,0.1292]
[1739376733216,0.15714,95456.0,95450.0,0.15715]
[1739376733387,0.157143,95454.0,95448.0,0.157152]
[1739376733722,0.29374199,95469.0,95447.0,0.00531236]
[1739376733900,0.157129,95463.0,95456.0,0.15714]
[1739376734144,0.62686,95454.0,95453.0,0.209525]
[1739376734926,0.62686,95454.0,95453.0,0.208525]
[1739376735351,0.62686,95454.0,95448.0,0.209536]
[1739376735555,0.62686,95454.0,95450.0,0.209532]
[1739376735702,0.62786,95454.0,95450.0,0.209532]
[1739376735888,0.62786,95454.0,95453.0,0.157145]
[1739376736189,0.62686,95454.0,95453.0,0.157145]
[1739376736391,0.62886,95454.0,95453.0,0.16244728]
[1739376737621,0.62686,95454.0,95453.0,0.16244728]
[1739376737999,0.62886,95454.0,95453.0,0.26595093]
[1739376738403,0.62986,95454.0,95453.0,0.26895093]
[1739376739003,0.62986,95454.0,95453.0,0.35025093]
[1739376739200,0.62986,95454.0,95453.0,0.57585032]
[1739376739475,0.003,95454.0,95453.0,0.57585032]
[1739376739694,0.157085,95490.0,95479.0,0.287602]
[1739376739891,0.209392,95515.0,95479.0,0.287602]
[1739376739892,0.01919122,95496.0,95479.0,0.1305]
[1739376740043,0.20968708,95483.0,95468.0,0.0809]
[1739376740250,0.157101,95480.0,95469.0,0.10250365]
[1739376740446,0.157099,95482.0,95475.0,0.157107]
[1739376740818,0.00022408,95483.0,95469.0,0.10250365]
[1739376741006,0.00022408,95483.0,95477.0,0.156105]
[1739376741217,0.00022408,95483.0,95469.0,0.10263652]
[1739376741560,0.001,95480.0,95469.0,0.00713287]
[1739376741762,0.157109,95476.0,95469.0,0.16425087]
[1739376742063,0.158101,95480.0,95474.0,0.15711]
[1739376742261,0.158101,95480.0,95477.0,0.007]
[1739376742262,0.001,95480.0,95477.0,0.007]
[1739376742469,0.00122408,95483.0,95477.0,0.209473]
[1739376742672,0.00122408,95483.0,95469.0,0.10263652]
[1739376742801,0.157099,95481.0,95473.0,0.157111]
[1739376743145,0.00122408,95483.0,95469.0,0.00013287]
[1739376743376,0.210468,95480.0,95474.0,0.015]
[1739376743604,0.001,95480.0,95474.0,0.015]
[1739376743807,0.00122408,95483.0,95469.0,0.00013287]
[1739376743808,0.00122408,95483.0,95470.0,0.209489]
[1739376744011,0.157107,95476.0,95475.0,0.0052669]
[1739376744185,0.15711,95474.0,95473.0,0.015]
[1739376744569,0.15711,95474.0,95473.0,0.02026967]
[1739376745137,0.15711,95474.0,95473.0,0.015]
[1739376745519,0.157117,95470.0,95469.0,0.00013287]
[1739376745911,0.6269,95476.0,95469.0,0.00013287]
[1739376746154,0.784008,95476.0,95470.0,0.157115]
[1739376746356,0.6269,95476.0,95474.0,0.014]
[1739376746739,0.6269,95476.0,95469.0,0.00013287]
[1739376746940,0.6269,95476.0,95475.0,0.00526118]
[1739376746941,0.78306413,95476.0,95475.0,0.00526118]
[1739376747164,0.78406413,95476.0,95470.0,0.157116]
[1739376747297,0.78406413,95476.0,95469.0,0.01513287]
[1739376747510,0.62695713,95476.0,95471.0,0.16238179]
[1739376747723,0.62695713,95476.0,95472.0,0.157113]
[1739376747918,0.62695713,95476.0,95475.0,0.157109]
[1739376748125,0.62795713,95476.0,95475.0,0.157109]
[1739376748344,0.62695713,95476.0,95475.0,0.16237018]
[1739376748580,0.62695713,95476.0,95475.0,0.157109]
[1739376748752,0.62895713,95476.0,95475.0,0.157109]
[1739376748952,0.62895713,95476.0,95475.0,0.00526075]
[1739376749109,0.78306413,95476.0,95475.0,0.00526075]
[1739376749310,0.78306413,95476.0,95475.0,0.007]
[1739376749311,0.84198643,95476.0,95475.0,0.007]
[1739376749637,0.96305314,95476.0,95475.0,0.015]
[1739376750045,0.33709601,95476.0,95475.0,0.006]
[1739376750241,0.33809601,95476.0,95475.0,0.02]
[1739376751366,0.56469601,95476.0,95475.0,0.02]
[1739376751574,0.58669601,95476.0,95475.0,0.006]
[1739376751977,0.58969601,95476.0,95475.0,0.006]
[1739376752190,0.157117,95470.0,95469.0,0.00013287]
[1739376752417,0.48892416,95470.0,95469.0,0.00013287]
[1739376752599,0.55702416,95470.0,95469.0,0.00013287]
[1739376752890,0.58934706,95470.0,95469.0,0.00013287]
[1739376753255,0.157143,95454.0,95453.0,0.0001067]
[1739376753451,0.40026395,95454.0,95453.0,0.0001067]
[1739376754110,0.0013333,95453.0,95430.0,0.0001067]
[1739376754318,0.307158,95445.0,95430.0,0.0001067]
[1739376754519,0.40966165,95445.0,95430.0,0.0001067]
[1739376755492,0.88566165,95445.0,95430.0,0.0001067]
[1739376755694,0.783158,95445.0,95430.0,0.0001067]
[1739376756109,0.88566165,95445.0,95444.0,0.0011767]
[1739376756313,0.783158,95445.0,95444.0,0.0001767]
[1739376756519,0.783158,95445.0,95444.0,0.0011767]
[1739376757204,0.783158,95445.0,95444.0,0.0021767]
[1739376758257,0.783158,95445.0,95444.0,0.0011767]
[1739376758457,0.783158,95445.0,95444.0,0.0001767]
[1739376758658,0.783158,95445.0,95444.0,0.0051767]
[1739376759056,0.79696914,95445.0,95444.0,0.0031767]
[1739376759436,0.79796914,95445.0,95444.0,0.0091767]
[1739376759612,0.79796914,95445.0,95444.0,0.0061767]
[1739376759810,0.784158,95445.0,95444.0,0.0091767]
[1739376760241,0.88666165,95445.0,95444.0,0.0091767]
[1739376761158,0.79962463,95445.0,95444.0,0.0091767]
[1739376761876,0.79862463,95445.0,95444.0,0.0031767]
[1739376762079,0.79962463,95445.0,95444.0,0.0091767]
[1739376762278,0.83823934,95445.0,95444.0,0.0091767]
[1739376762477,0.79962463,95445.0,95444.0,0.0091767]
[1739376762922,0.79962463,95445.0,95444.0,0.0061767]
[1739376763147,0.79962463,95445.0,95444.0,0.0091767]
[1739376764510,0.69712098,95445.0,95444.0,0.0091767]
[1739376765439,0.46137258,95445.0,95444.0,0.0091767]
[1739376766196,0.158158,95445.0,95444.0,0.0091767]
[1739376768184,0.001,95445.0,95444.0,0.0091767]
[1739376768596,0.158158,95445.0,95444.0,0.0091767]
[1739376768798,0.158158,95445.0,95444.0,0.01443325]
[1739376769052,0.001,95445.0,95444.0,0.17159325]
[1739376769498,0.001,95445.0,95444.0,0.01443325]
[1739376770194,0.001,95445.0,95444.0,0.17159325]
[1739376771558,0.3042,95445.0,95444.0,0.01443325]
[1739376772166,0.3042,95445.0,95444.0,0.17159325]
[1739376772554,0.3042,95445.0,95444.0,0.2740969]
[1739376773365,0.3032,95445.0,95444.0,0.2680969]
[1739376773997,0.3032,95445.0,95444.0,0.3439969]
[1739376774531,0.3032,95445.0,95444.0,0.3409969]
[1739376774858,0.3042,95445.0,95444.0,0.3479969]
[1739376775345,0.3052,95445.0,95444.0,0.3619969]
[1739376775632,0.3042,95445.0,95444.0,0.3549969]
[1739376775836,0.3032,95445.0,95444.0,0.3479969]
[1739376775972,0.3052,95445.0,95444.0,0.4184969]
[1739376776184,0.3042,95445.0,95444.0,0.5614969]
[1739376776387,0.3042,95445.0,95444.0,0.5644969]
[1739376776585,0.3032,95445.0,95444.0,0.5644969]
[1739376776792,0.3042,95445.0,95444.0,0.5794969]
[1739376777002,0.30442408,95445.0,95444.0,0.5794969]
[1739376777199,0.29726384,95445.0,95444.0,0.5794969]
[1739376777569,0.24726384,95445.0,95444.0,0.5794969]
[1739376777748,0.24726384,95445.0,95444.0,0.5954969]
[1739376777921,0.24726384,95445.0,95444.0,0.6024969]
[1739376778309,0.24626384,95445.0,95444.0,0.5874969]
[1739376778533,0.24726384,95445.0,95444.0,0.6014969]
[1739376778704,0.24726384,95445.0,95444.0,0.62261521]
[1739376779170,0.16816384,95445.0,95444.0,0.60861521]
[1739376779377,0.16916384,95445.0,95444.0,0.62261521]
[1739376780530,0.16916384,95445.0,95444.0,0.59961521]
[1739376780763,0.16916384,95445.0,95444.0,0.5784969]
[1739376781399,0.07866573,95445.0,95444.0,0.6014969]
[1739376781606,0.00504967,95445.0,95444.0,0.6014969]
[1739376781815,0.0013333,95453.0,95452.0,0.461547]
[1739376781950,0.0013333,95453.0,95452.0,0.56405065]
[1739376782153,3.8e-07,95454.0,95453.0,0.431445]
[1739376782358,3.8e-07,95454.0,95453.0,0.53394865]
[1739376782553,3.8e-07,95454.0,95453.0,0.53917122]
[1739376783250,3.8e-07,95454.0,95453.0,0.55317122]
[1739376783475,0.00022408,95476.0,95475.0,0.233309]
[1739376783687,0.00035663,95476.0,95475.0,0.34581265]
[1739376783837,0.00035663,95476.0,95475.0,0.3848024]
[1739376785752,0.00035663,95476.0,95475.0,0.3998024]
[1739376785961,0.00035663,95476.0,95475.0,0.4068024]
[1739376786186,0.00035663,95476.0,95475.0,0.3848024]
[1739376786388,0.00035663,95476.0,95475.0,0.3998024]
[1739376786784,0.00035663,95476.0,95475.0,0.3560024]
[1739376787490,0.00035663,95476.0,95475.0,0.3630024]
[1739376787695,0.00035663,95476.0,95475.0,0.2648024]
[1739376788151,0.00135663,95476.0,95475.0,0.2868024]
[1739376788587,0.00035663,95476.0,95475.0,0.2718024]
[1739376788947,0.00135663,95476.0,95475.0,0.2798024]
[1739376789169,0.00135663,95476.0,95475.0,0.2868024]
[1739376789347,0.00135663,95476.0,95475.0,0.2798024]
[1739376789553,0.00035663,95476.0,95475.0,0.2648024]
[1739376789750,0.00135663,95476.0,95475.0,0.2798024]
[1739376790162,0.00135663,95476.0,95475.0,0.2898024]
[1739376790783,0.00135663,95476.0,95475.0,0.4468024]
[1739376791144,0.00035663,95476.0,95475.0,0.4318024]
[1739376791554,0.00135663,95476.0,95475.0,0.4468024]
[1739376791851,0.00135663,95476.0,95475.0,0.46419736]
[1739376792076,0.00035663,95476.0,95475.0,0.44919736]
[1739376792437,0.00135663,95476.0,95475.0,0.46419736]
[1739376792640,0.00135663,95476.0,95475.0,0.55969736]
[1739376792861,0.00035663,95476.0,95475.0,0.54469736]
[1739376793032,0.00035663,95476.0,95475.0,0.53169736]
[1739376793238,0.00135663,95476.0,95475.0,0.53669736]
[1739376793869,0.00135663,95476.0,95475.0,0.52669736]
[1739376794074,0.00135663,95476.0,95475.0,0.53369736]
[1739376794274,0.00135663,95476.0,95475.0,0.38369736]
[1739376794484,0.00135663,95476.0,95475.0,0.2868024]
[1739376795055,0.00135663,95476.0,95475.0,0.1296934]
[1739376795256,0.00035663,95476.0,95475.0,0.1076934]
[1739376795460,0.00035663,95476.0,95475.0,0.2868024]
[1739376795665,0.00135663,95476.0,95475.0,0.28687618]
[1739376795869,0.00135663,95476.0,95475.0,0.27987618]
[1739376796068,0.00035663,95476.0,95475.0,0.26487618]
[1739376796478,0.00135663,95476.0,95475.0,0.27987618]
[1739376796882,0.00135663,95476.0,95475.0,0.12276718]
[1739376797080,0.00135663,95476.0,95475.0,0.02026353]
[1739376797283,0.15846363,95476.0,95475.0,0.02726353]
[1739376797626,0.20486363,95476.0,95475.0,0.007]
[1739376797781,0.20486363,95476.0,95475.0,0.014]
[1739376797985,0.20486363,95476.0,95475.0,0.029]
[1739376797986,0.35586363,95476.0,95475.0,0.029]
[1739376798148,0.15,95475.0,95444.0,0.0001767]
[1739376798345,0.206858,95445.0,95444.0,0.0001767]
[1739376799576,0.206858,95445.0,95444.0,0.0011767]
[1739376799805,0.21654646,95445.0,95444.0,0.0011767]
[1739376800206,0.23592171,95445.0,95444.0,0.0011767]
[1739376800833,0.23592171,95445.0,95444.0,0.0001767]
[1739376801231,0.23592171,95445.0,95444.0,0.0071767]
[1739376801543,0.23692171,95445.0,95444.0,0.0191767]
[1739376802833,0.2994253,95447.0,95444.0,0.0191767]
[1739376802962,0.157158,95445.0,95444.0,0.0191767]
[1739376807459,0.157158,95445.0,95444.0,0.0071767]
[1739376807652,0.157158,95445.0,95444.0,0.0161767]
[1739376807781,0.158158,95445.0,95444.0,0.0161767]
[1739376807981,0.158158,95445.0,95444.0,0.0091767]
[1739376808186,0.157158,95445.0,95444.0,0.0071767]
[1739376808390,0.158158,95445.0,95444.0,0.0161767]
[1739376810539,0.158158,95445.0,95444.0,0.02268429]
[1739376810540,0.001,95445.0,95444.0,0.02268429]
[1739376810773,0.001,95445.0,95444.0,0.17984429]
[1739376810931,0.209519,95457.0,95448.0,0.157153]
[1739376811134,0.35738306,95460.0,95444.0,0.00668429]
[1739376811368,0.35738306,95460.0,95451.0,0.157148]
[1739376811369,0.157137,95458.0,95451.0,0.157148]
[1739376811574,0.157135,95459.0,95445.0,0.10250365]
[1739376811764,0.157135,95459.0,95451.0,0.157147]
[1739376811951,0.14787106,95460.0,95445.0,0.10250365]
[1739376812132,0.14787106,95460.0,95453.0,0.157144]
[1739376812338,0.14787106,95460.0,95445.0,0.10250365]
[1739376812557,0.15714,95457.0,95454.0,0.00648781]
[1739376812787,0.157136,95459.0,95450.0,0.157148]
[1739376812989,0.14787106,95460.0,95455.0,0.0064836]
[1739376813186,0.209495,95468.0,95452.0,0.209529]
[1739376813461,0.00022408,95476.0,95466.0,0.209498]
[1739376813710,0.00013255,95475.0,95467.0,0.21054237]
[1739376813886,0.00013255,95475.0,95457.0,0.209518]
[1739376814109,0.00013255,95475.0,95470.0,0.156117]
[1739376814438,0.00013255,95475.0,95471.0,0.00623232]
[1739376814576,0.00013255,95475.0,95472.0,0.157113]
[1739376814777,0.00013255,95475.0,95472.0,0.00645002]
[1739376814961,0.00013255,95475.0,95472.0,0.16356302]
[1739376815166,0.00013255,95475.0,95473.0,0.157111]
[1739376815364,0.00013255,95475.0,95473.0,0.00021807]
[1739376815583,0.00013255,95475.0,95471.0,0.157115]
[1739376815784,0.00013255,95475.0,95474.0,0.00020288]
[1739376815985,0.00013255,95475.0,95474.0,0.15711]
[1739376816208,0.00013255,95475.0,95474.0,0.15731288]
[1739376816972,0.00013255,95475.0,95474.0,0.25981653]
[1739376817704,0.00013255,95475.0,95474.0,0.27571429]
[1739376817910,0.00013255,95475.0,95474.0,0.28194003]
[1739376818318,0.00013255,95475.0,95474.0,0.28894003]
[1739376818700,0.00013255,95475.0,95474.0,0.28194003]
[1739376819070,0.00013255,95475.0,95474.0,0.28894003]
[1739376819403,0.00013255,95475.0,95474.0,0.28194003]
[1739376819783,0.00013255,95475.0,95474.0,0.29694003]
[1739376820189,0.00013255,95475.0,95474.0,0.28194003]
[1739376820390,0.00013255,95475.0,95474.0,0.13983003]
[1739376820591,0.00013255,95475.0,95474.0,0.14683003]
[1739376820790,0.00013255,95475.0,95474.0,0.13093227]
[1739376821094,0.15724155,95475.0,95474.0,0.02842862]
[1739376821283,0.15724155,95475.0,95474.0,0.03542862]
[1739376821482,0.15724155,95475.0,95474.0,0.022]
[1739376821882,0.15724155,95475.0,95474.0,0.029]
[1739376822352,0.157142,95455.0,95438.0,0.0787]
[1739376822497,0.157144,95454.0,95445.0,0.10250365]
[1739376822694,0.209494,95468.0,95446.0,0.0062872]
[1739376822905,0.209514,95459.0,95447.0,0.10250365]
[1739376823115,0.157153,95448.0,95447.0,0.10250365]
[1739376823324,0.0483,95465.0,95447.0,0.10268815]
[1739376823775,0.157149,95451.0,95447.0,0.10268815]
[1739376824001,0.209518,95457.0,95447.0,0.10268815]
[1739376824176,0.209503,95464.0,95447.0,0.10250365]
[1739376824387,0.15715,95450.0,95448.0,0.00018489]
[1739376824740,0.15715,95450.0,95447.0,0.10850365]
[1739376824958,0.15715,95450.0,95449.0,0.00018529]
[1739376825075,0.209523,95455.0,95448.0,0.00646769]
[1739376825524,0.15715,95450.0,95448.0,0.00646769]
[1739376825904,0.157145,95453.0,95448.0,0.00646769]
[1739376826439,0.01642056,95463.0,95448.0,0.00646769]
[1739376826735,0.157147,95452.0,95448.0,0.00646769]
[1739376827174,0.03625916,95463.0,95448.0,0.00646769]
[1739376827175,0.157149,95451.0,95448.0,0.01746769]
[1739376827350,0.03625916,95463.0,95448.0,0.02446769]
[1739376827351,0.157151,95449.0,95448.0,0.02446769]
[1739376827584,0.157151,95449.0,95448.0,0.01346769]
[1739376827755,0.157151,95449.0,95448.0,0.007]
[1739376827956,0.15715,95451.0,95448.0,0.026]
[1739376828172,0.20952,95456.0,95448.0,0.026]
[1739376828358,0.209509,95462.0,95448.0,0.026]
[1739376828778,0.157151,95449.0,95448.0,0.012]
[1739376828984,0.157151,95449.0,95448.0,0.019]
[1739376829186,0.17653709,95449.0,95448.0,0.019]
[1739376829360,0.01938609,95449.0,95448.0,0.019]
[1739376829777,0.01938609,95449.0,95448.0,0.007]
[1739376829969,0.01938609,95449.0,95448.0,0.01919622]
[1739376830217,0.02907962,95449.0,95448.0,0.019]
[1739376830533,0.00969353,95449.0,95448.0,0.007]
[1739376830737,0.00969353,95449.0,95448.0,0.021]
[1739376830934,0.00969353,95449.0,95448.0,0.01419622]
[1739376831198,0.00969353,95449.0,95448.0,0.00019622]
[1739376831441,0.00969353,95449.0,95448.0,0.00419622]
[1739376831648,0.01069353,95449.0,95448.0,0.014]
[1739376831971,0.01069353,95449.0,95448.0,0.02119622]
[1739376832345,0.01069353,95449.0,95448.0,0.28190046]
[1739376832638,0.01069353,95449.0,95448.0,0.36165287]
[1739376832791,0.00969353,95449.0,95448.0,0.34065287]
[1739376833547,0.00969353,95449.0,95448.0,0.35465287]
[1739376833759,0.209491,95470.0,95462.0,0.157129]
[1739376833760,0.157118,95470.0,95462.0,0.157129]
[1739376833952,0.157118,95470.0,95463.0,0.10250365]
[1739376834091,0.209481,95474.0,95463.0,0.10250365]
[1739376834297,0.00035642,95475.0,95464.0,0.00019943]
[1739376834564,0.157112,95473.0,95465.0,0.157124]
[1739376834713,0.209482,95474.0,95465.0,0.157124]
[1739376834913,0.157116,95471.0,95465.0,0.157124]
[1739376835118,0.157114,95472.0,95466.0,0.00020022]
[1739376835481,0.157112,95473.0,95467.0,0.157122]
[1739376835891,0.157112,95473.0,95466.0,0.00020022]
[1739376835892,0.00035642,95475.0,95468.0,0.00019812]
[1739376836168,0.00035642,95475.0,95474.0,0.15711]
[1739376836405,0.00035642,95475.0,95474.0,0.25961365]
[1739376836598,0.00035642,95475.0,95474.0,0.25980876]
[1739376836812,0.00035642,95475.0,95474.0,0.10269876]
[1739376837105,0.15746542,95475.0,95474.0,0.00019511]
[1739376837234,0.15746542,95475.0,95474.0,0.00642085]
[1739376837440,0.00035642,95475.0,95474.0,0.008]
[1739376837661,0.36694442,95475.0,95474.0,0.008]
[1739376838060,0.36694442,95475.0,95474.0,0.014]
[1739376839149,0.15746542,95475.0,95474.0,0.014]
[1739376839399,0.00035642,95475.0,95474.0,0.27361365]
[1739376839718,0.00035642,95475.0,95474.0,0.27380861]
[1739376840918,0.00035642,95475.0,95474.0,0.28003435]
[1739376841348,0.00035642,95475.0,95474.0,0.27403435]
[1739376841731,0.00035642,95475.0,95474.0,0.28003435]
[1739376841887,0.00035642,95475.0,95474.0,0.27203435]
[1739376842307,0.209415,95504.0,95474.0,0.10892435]
[1739376842512,0.157082,95492.0,95486.0,0.157091]
[1739376842752,0.157077,95494.0,95475.0,0.10250365]
[1739376843063,0.209432,95497.0,95475.0,0.10250365]
[1739376843064,0.15708,95493.0,95484.0,0.157092]
[1739376843272,0.15,95499.0,95486.0,0.15709]
[1739376843399,0.22159039,95510.0,95487.0,0.10250365]
[1739376843614,0.157063,95504.0,95497.0,0.157072]
[1739376843813,0.0933075,95505.0,95487.0,0.10250365]
[1739376844020,0.0933075,95505.0,95501.0,0.157064]
[1739376844225,0.0933075,95505.0,95499.0,0.209425]
[1739376844568,0.0933075,95505.0,95487.0,0.10250365]
[1739376844770,0.0004428,95505.0,95504.0,0.157061]
[1739376845334,0.0004428,95505.0,95504.0,0.1572646]
[1739376845845,0.0004428,95505.0,95504.0,0.0002036]
[1739376846048,0.20942,95502.0,95499.0,0.003]
[1739376846253,0.01619218,95505.0,95499.0,0.003]
[1739376846254,0.2098568,95505.0,95499.0,0.003]
[1739376846533,0.157067,95501.0,95499.0,0.003]
[1739376847103,0.0764,95500.0,95499.0,0.003]
[1739376847325,0.2098558,95505.0,95499.0,0.003]
[1739376847501,0.2098558,95505.0,95472.0,0.209485]
[1739376847699,0.15707,95499.0,95490.0,0.157083]
[1739376847898,0.0004428,95505.0,95491.0,0.209443]
[1739376848098,0.0004428,95505.0,95498.0,0.157069]
[1739376848300,0.0004428,95505.0,95491.0,0.00618845]
[1739376848484,0.0004428,95505.0,95503.0,0.157062]
[1739376848684,0.0004428,95505.0,95502.0,0.209419]
[1739376848884,0.0004428,95505.0,95504.0,0.16322094]
[1739376849080,0.0004428,95505.0,95504.0,0.15810799]
[1739376849329,0.0004428,95505.0,95504.0,0.26572459]
[1739376851216,0.0004428,95505.0,95504.0,0.26872459]
[1739376852821,0.22159039,95530.0,95504.0,0.11166359]
[1739376853031,0.22167386,95530.0,95516.0,0.157041]
[1739376853209,0.157027,95525.0,95516.0,0.25954465]
[1739376853621,0.22167386,95530.0,95505.0,0.00634192]
[1739376853827,0.15702,95529.0,95506.0,0.10250365]
[1739376853987,0.22159039,95520.0,95507.0,0.157055]
[1739376854189,0.157043,95516.0,95507.0,0.16320836]
[1739376854518,0.15704,95518.0,95510.0,0.15705]
[1739376854713,0.209379,95521.0,95507.0,0.00615336]
[1739376854923,0.209379,95521.0,95506.0,0.10250365]
[1739376855123,0.22167386,95530.0,95515.0,0.157042]
[1739376855124,0.157031,95523.0,95515.0,0.157042]
[1739376855330,8.347e-05,95530.0,95518.0,0.209383]
[1739376855540,0.157027,95525.0,95516.0,0.00613363]
[1739376855764,0.157022,95528.0,95519.0,0.157035]
[1739376855963,8.347e-05,95530.0,95520.0,0.21550286]
[1739376856186,8.347e-05,95530.0,95524.0,0.157028]
[1739376856348,8.347e-05,95530.0,95521.0,0.209378]
[1739376856548,8.347e-05,95530.0,95520.0,0.00612486]
[1739376856877,8.347e-05,95530.0,95496.0,0.01640689]
[1739376856878,8.347e-05,95530.0,95529.0,0.15702]
[1739376857428,8.347e-05,95530.0,95529.0,0.16417181]
[1739376857634,8.347e-05,95530.0,95529.0,0.16312514]
[1739376859074,8.347e-05,95530.0,95529.0,0.27167543]
[1739376859304,8.347e-05,95530.0,95529.0,0.16812514]
[1739376859717,8.347e-05,95530.0,95529.0,0.01110514]
[1739376859914,8.347e-05,95530.0,95529.0,0.17312514]
[1739376860053,0.15710147,95530.0,95529.0,0.01610514]
[1739376860258,0.15710147,95530.0,95529.0,0.01110514]
[1739376860460,0.15710147,95530.0,95529.0,0.012]
[1739376861035,0.30710147,95530.0,95529.0,0.012]
[1739376861368,0.30710147,95530.0,95529.0,0.007]
[1739376861564,0.30710147,95530.0,95529.0,0.019]
[1739376861830,0.30710147,95530.0,95529.0,0.012]
[1739376862040,0.15008347,95530.0,95518.0,0.157038]
[1739376862280,0.51646147,95530.0,95529.0,0.01028536]
[1739376862396,0.5323676,95530.0,95529.0,0.01]
[1739376862595,0.57879472,95530.0,95529.0,0.01]
[1739376862793,0.57879472,95530.0,95529.0,0.004]
[1739376863039,0.5323676,95530.0,95529.0,0.004]
[1739376864051,0.38228413,95530.0,95529.0,0.004]
[1739376864455,0.50778778,95530.0,95529.0,0.004]
[1739376864649,0.50878778,95530.0,95529.0,0.004]
[1739376865046,0.50778778,95530.0,95529.0,0.004]
[1739376865269,0.23984,95517.0,95516.0,0.0001065]
[1739376866071,0.38984,95517.0,95516.0,0.0001065]
[1739376866268,0.13929069,95517.0,95516.0,0.0001065]
[1739376866811,0.29633069,95517.0,95516.0,0.0001065]
[1739376867197,0.31222689,95517.0,95516.0,0.0001065]
[1739376867598,0.31222689,95517.0,95516.0,0.0011065]
[1739376868901,0.53176663,95517.0,95516.0,0.0041065]
[1739376869111,0.48303054,95517.0,95516.0,0.0041065]
[1739376869281,0.56273054,95517.0,95516.0,0.0041065]
[1739376870307,0.57913725,95517.0,95516.0,0.0041065]
[1739376871217,0.57913725,95517.0,95516.0,0.0001065]
[1739376871615,0.58213725,95517.0,95516.0,0.0001065]
[1739376871804,0.6846409,95517.0,95516.0,0.0001065]
[1739376871989,0.6836409,95517.0,95516.0,0.0001065]
[1739376872243,0.6816409,95517.0,95516.0,0.0001065]
[1739376872397,0.6846409,95517.0,95516.0,0.0011065]
[1739376872800,0.6816409,95517.0,95516.0,0.0001065]
[1739376873199,0.6846409,95517.0,95516.0,0.0001065]
[1739376873407,0.157097,95482.0,95473.0,0.15732048]
[1739376873601,0.157097,95482.0,95472.0,0.0814]
[1739376873807,0.15,95505.0,95472.0,0.0814]
[1739376873808,0.157109,95475.0,95472.0,0.0814]
[1739376874006,0.209454,95487.0,95472.0,0.0814]
[1739376874225,0.157107,95476.0,95472.0,0.0814]
[1739376874474,0.209471,95479.0,95472.0,0.0814]
[1739376874608,0.157107,95476.0,95474.0,0.0005493]
[1739376874807,0.01469594,95487.0,95474.0,0.0005493]
[1739376875133,0.157097,95483.0,95475.0,0.157107]
[1739376875333,0.157097,95482.0,95475.0,0.157107]
[1739376875497,0.209457,95485.0,95474.0,0.0005493]
[1739376875693,0.1571,95481.0,95474.0,0.0005493]
[1739376875894,0.1571,95481.0,95474.0,0.0145493]
[1739376876089,0.157101,95480.0,95474.0,0.0075493]
[1739376876299,0.209435,95495.0,95474.0,0.0075493]
[1739376876300,0.209435,95495.0,95474.0,0.0005493]
[1739376876508,0.209408,95507.0,95489.0,0.157085]
[1739376876735,0.209408,95507.0,95476.0,0.209476]
[1739376876736,0.209408,95507.0,95476.0,0.0817]
[1739376876991,0.15,95511.0,95495.0,0.157076]
[1739376877196,0.15,95502.0,95494.0,0.157077]
[1739376877593,0.01491649,95513.0,95489.0,0.209448]
[1739376877844,0.00022366,95517.0,95497.0,0.0809]
[1739376878155,0.209402,95510.0,95497.0,0.0809]
[1739376878337,0.157053,95509.0,95502.0,0.157063]
[1739376878545,0.157057,95507.0,95499.0,0.209425]
[1739376879097,0.157057,95507.0,95501.0,0.157064]
[1739376879449,0.157057,95507.0,95500.0,0.157066]
[1739376879656,0.158057,95507.0,95501.0,0.157064]
[1739376879886,0.001,95507.0,95506.0,0.157058]
[1739376880259,0.001,95507.0,95506.0,0.25956165]
[1739376880509,0.001,95507.0,95506.0,0.157058]
[1739376880685,0.001,95507.0,95499.0,0.007]
[1739376880845,0.001,95507.0,95499.0,0.10950365]
[1739376881041,0.0367452,95506.0,95499.0,0.00708347]
[1739376881266,0.157058,95506.0,95499.0,8.347e-05]
[1739376881467,0.158056,95507.0,95501.0,0.007]
[1739376881666,0.001,95507.0,95501.0,0.007]
[1739376882082,0.157057,95507.0,95500.0,0.157067]
[1739376882331,0.001,95507.0,95501.0,0.157065]
[1739376882536,0.001,95507.0,95499.0,0.22750947]
[1739376882709,0.157058,95506.0,95499.0,0.16915247]
[1739376882911,0.209406,95509.0,95499.0,8.347e-05]
[1739376883129,0.158056,95507.0,95501.0,0.018]